Cogmind - Beta 16 @@@ ROGUE MODE // 2025.12.20 @ 10:58:38 Player: EuleBlut Result: Self-destructed Performance ------------- Evolutions (1) 500 Regions Visited (2) 400 Robots Destroyed (14) 70 Value Destroyed (384) 384 Prototype IDs (0) 0 Alien Tech Used (0) 0 Bonus (0) 0 TOTAL SCORE: 1354 Bonus ------- None Cogmind --------- Core Integrity 129/400 Matter 385/500 Energy 36/250 System Corruption 0% Temperature Cool (0) Movement Core (550) Ox10 Location -9/Materials Parts ------- > --- POWER (1) -------- Ion Engine > --- PROPULSION (2) --- (None) > --- UTILITY (4) ------ Cooling System Large Storage Unit High-capacity Matter Pod > --- WEAPON (2) ------- (None) > --- INVENTORY (15) --- Light Treads Light Treads Wheel Small Laser Grenade Launcher Peak State ------------ > --- POWER ------------ Light Ion Engine > --- PROPULSION ------- Wheel Wheel > --- UTILITY ---------- Cooling System Large Storage Unit High-capacity Matter Pod > --- WEAPON ----------- EM Pulse Gun Particle Gun > --- INVENTORY -------- Light Treads Light Treads Wheel Small Laser Grenade Launcher [Rating: 10] Favorites ----------- Power Ion Engine Engine Ion Engine Propulsion Wheel Wheel Wheel Utility Light Armor Plating Device Cooling System Storage Large Storage Unit Protection Light Armor Plating Weapon Light Assault Rifle Energy Gun EM Pulse Gun Ballistic Gun Light Assault Rifle Build | -11 -10 -9 ------- Run | Yrd Mat Mat Slots Evolved 2 | . . 2 Power . | . . . Propulsion . | . . . Utility 2 | . . 2 Weapon . | . . . Parts Attached 17 | 6 2 9 Power 3 | 1 . 2 Engine 3 | 1 . 2 Core . | . . . Reactor . | . . . Propulsion 4 | 2 . 2 Treads . | . . . Leg . | . . . Wheel 4 | 2 . 2 Hover . | . . . Flight . | . . . Utility 5 | 1 2 2 Device 1 | . . 1 Storage 3 | 1 1 1 Processor . | . . . Hackware . | . . . Protection 1 | . 1 . Artifact . | . . . Weapon 5 | 2 . 3 Energy Gun 4 | 1 . 3 Energy Cannon . | . . . Ballistic Gun 1 | 1 . . Ballistic Cannon . | . . . Launcher . | . . . Special Weapon . | . . . Impact Weapon . | . . . Slashing Weapon . | . . . Piercing Weapon . | . . . Special Melee Weapon . | . . . Unidentified Prototypes . | . . . Parts Lost 12 | . 1 11 Power 2 | . . 2 Propulsion 4 | . . 4 Utility 1 | . . 1 Weapon 5 | . 1 4 Highest Loss Streak 11 | . 1 11 To Critical Strikes . | . . . Average Backups 7 | 2 8 8 Power . | . 1 . Propulsion 2 | 1 2 3 Utility . | . . . Weapon 3 | . 3 3 Tool/Special . | . . . Unused Backups 5 | . . 5 Power . | . . . Propulsion 3 | . . 3 Utility . | . . . Weapon 2 | . . 2 Tool/Special . | . . . Average Slot Usage (%) 84 | . 95 76 Engine 11 | . 14 10 Wheel 22 | . 28 17 Storage 18 | . 14 22 Protection 10 | . 11 9 Energy Gun 9 | . 12 7 Ballistic Gun 10 | . 14 8 Peak Build Rating 10 | 6 7 10 Average Rating 7 | 4 6 7 On Entrance 4 | . 6 6 Avg Prop Armor Cover (%) . | . . . Naked Turns . | . . . Heaviest Build 35 | 13 31 35 Greatest Support 26 | 26 26 26 Greatest Overweight (x) 3 | . 1 3 Average Overweight (x) . | . . 1 Largest Inventory Capacity 15 | 8 15 15 Average Capacity 13 | 6 12 15 Most Carried 11 | 4 9 11 Average Carried 7 | 2 8 8 Final Capacity 15 | 8 15 15 Final Carried 9 | 4 9 5 Class Distribution -------------------- 100% | Mutant Dominant Class ---------------- Mutant | -10/Materials Mutant | -9/Materials Resources | -11 -10 -9 ----------- Run | Yrd Mat Mat Matter Collected 418 | 252 34 132 Remotely . | . . . Salvage Created 504 | . 125 379 Parts 31 | . 6 25 Haulers Intercepted . | . . . Recyclers Shooed 3 | . . 3 Parts Field Recycled . | . . . Retrieved Matter . | . . . Parts Self-Destructed . | . . . Prevented . | . . . Parts Restored . | . . . Kills | -11 -10 -9 ------- Run | Yrd Mat Mat Combat Hostiles Destroyed 10 | . 3 7 Guns 9 | . 2 7 AOE 1 | . 1 . Classes Destroyed 4 | . 1 3 Builder 2 | . . 2 Watcher 2 | . . 2 Swarmer 1 | . . 1 Grunt 9 | . 3 6 Best Kill Streak 5 | . 2 5 Combat Bots Only 3 | . 2 3 Max Kills in Single Turn 1 | . 1 1 Gunslinging . | . . . Exploded 1 | . 1 . Melee . | . . . Uniques/NPCs Destroyed . | . . . Combat | -11 -10 -9 -------- Run | Yrd Mat Mat Hostile Shots Fired 136 | . 20 116 Missed 30 | . 6 24 Hits 106 | . 14 92 Projectile 106 | . 14 92 Damage Taken 1141 | . 228 913 Core 330 | . 59 271 Absorbed by Shields . | . . . Core Remaining (%) 88 | 100 76 . Volleys Fired 45 | . 12 33 Largest 2 | . 2 2 Hottest 65 | . 60 65 Shots Fired 71 | . 22 49 Gun 71 | . 22 49 Cannon . | . . . Launcher . | . . . Special . | . . . Kinetic 30 | . 12 18 Thermal 6 | . . 6 Explosive . | . . . Electromagnetic 35 | . 10 25 Robot Hit Streak 10 | . 6 10 Robot Miss Streak 3 | . 3 2 Penetration Max . | . . . Secondary Targets 3 | . . 3 Max Gunslinging Chain 1 | . . 1 Shots Hit Robots 48 | . 14 34 Core Hits 28 | . 8 20 Critical Kills 1 | . 1 . Critical Parts Destroyed . | . . . Critical Strikes 1 | . 1 . Destroy 1 | . 1 . Melee Attacks . | . . . Impact . | . . . Slashing . | . . . Piercing . | . . . Sneak Attacks . | . . . Combat Hostiles . | . . . Follow-up Attacks . | . . . Damage Inflicted 754 | . 207 547 Guns 639 | . 152 487 Cannons . | . . . Explosions 106 | . 46 60 Melee . | . . . Ramming 9 | . 9 . Kinetic 174 | . 73 101 Thermal 150 | . 46 104 Explosive . | . . . Electromagnetic 421 | . 79 342 Impact . | . . . Slashing . | . . . Piercing . | . . . Highest Corruption . | . . . Average Corruption . | . . . Corruption Purged . | . . . Corruption Blocked . | . . . Overload Shots . | . . . Overflow Damage . | . . . Projectiles . | . . . Explosions . | . . . Melee . | . . . Knockbacks . | . . . Impact . | . . . Kinetic . | . . . Secondary . | . . . Self-Inflicted Damage 3 | . 3 . Shots . | . . . Rammed 3 | . 3 . Targets Rammed 3 | . 3 . Kicked . | . . . Crushed . | . . . Highest Temperature 210 | . 158 210 Average Temperature 68 | . 67 69 Received Heat Transfer 399 | . 105 294 Effects 1 | . . 1 Interference 1 | . . 1 Siege Activations . | . . . Martial Activations . | . . . Shielding Activations . | . . . Robots Disrupted . | . . . Combat Hostiles . | . . . Robots Corrupted . | . . . Combat Hostiles . | . . . Parts Fried . | . . . Impact Corruptions . | . . . Robots Melted . | . . . Combat Hostiles . | . . . Parts Melted . | . . . Heat Transferred 261 | . 50 211 Parts Sabotaged . | . . . Parts Stolen . | . . . Parts Stripped . | . . . Power Chain Reactions 3 | . 1 2 Alert | -11 -10 -9 ------- Run | Yrd Mat Mat Maximum Alert Level . | . . . Low Security (%) 100 | 100 100 100 Level 1 . | . . . Level 2 . | . . . Level 3 . | . . . Level 4 . | . . . Level 5 . | . . . High Security . | . . . Max Security . | . . . Peak Influence 68 | . 52 68 Initial 17 | . . 17 Average 19 | . 10 30 Influence Increases 292 | . 82 210 Destroy 0b10 Robot/C 200 | . 60 140 Destroy 0b10 Robot/NC 20 | . . 20 Destroy Leader 64 | . 20 44 Destroy Structure 8 | . 2 6 Influence Decreases 282 | . 40 242 Entered New Map 25 | . . 25 Time Decay 137 | . 30 107 Lost Part 120 | . 10 110 Squads Dispatched 5 | . 1 4 Investigation 1 | . . 1 Extermination . | . . . Reinforcement 4 | . 1 3 Assault . | . . . Garrison . | . . . Intercept . | . . . Searches Triggered . | . . . Construction Impeded 1 | . . 1 Haulers Reinforced . | . . . Active Scanning Responses . | . . . Cargo Convoy Interrupts . | . . . Stealth | -11 -10 -9 --------- Run | Yrd Mat Mat Distress Signals 1 | . . 1 Communications Jammed . | . . . Distress Signals . | . . . Times Spotted 21 | . 5 16 Peak Tracking Total 7 | . 3 7 Tactical Retreats . | . . . Traps | -11 -10 -9 ------- Run | Yrd Mat Mat Traps Triggered 2 | . 1 1 Indirectly . | . . . Trap Hack Attempts . | . . . Triggered . | . . . Disarmed . | . . . Reprogrammed . | . . . Reused . | . . . Traps Extracted . | . . . Installed . | . . . Triggered . | . . . Machines | -11 -10 -9 ---------- Run | Yrd Mat Mat Machines Disabled . | . . . Max in Single Turn . | . . . Machines Repaired . | . . . Machines Dismantled . | . . . Machines Sabotaged . | . . . Overloaded Fab Kills . | . . . Hacking | -11 -10 -9 --------- Run | Yrd Mat Mat Machines Accessed 2 | . 2 . Terminals 2 | . 2 . Fabricators . | . . . Repair Stations . | . . . Recycling Units . | . . . Scanalyzers . | . . . Garrison Access . | . . . Total Hacks 4 | . 4 . Successful . | . . . Failed 4 | . 4 . Catastrophic 1 | . 1 . Database Lockouts . | . . . Manual 4 | . 4 . Terminals 4 | . 4 . Fabricators . | . . . Repair Stations . | . . . Recycling Units . | . . . Scanalyzers . | . . . Garrison Access . | . . . Terminal Hacks . | . . . Fabricator Hacks . | . . . Repair Station Hacks . | . . . Recycling Unit Hacks . | . . . Scanalyzer . | . . . Garrison Access Hacks . | . . . Unauthorized Hacks . | . . . Terminals . | . . . Fabricators . | . . . Repair Stations . | . . . Recycling Units . | . . . Scanalyzers . | . . . Garrison Access . | . . . Data Cores Recovered . | . . . Used . | . . . Hacking Detections 2 | . 2 . Full Trace Events 1 | . 1 . Feedback Events . | . . . Feedback Blocked . | . . . Robot Schematics Acquired . | . . . Robots Built . | . . . Authchips . | . . . Time . | . . . Total Robot Build Rating . | . . . Part Schematics Acquired . | . . . Parts Built . | . . . Authchips . | . . . Time . | . . . Total Part Build Rating . | . . . Part Studies Acquired . | . . . Parts Repaired . | . . . Time . | . . . Parts Recycled . | . . . Recycled Matter . | . . . Retrieved Matter . | . . . Retrieved Components . | . . . Parts Scanalyzed . | . . . Part Schematics Acquired . | . . . Parts Damaged . | . . . Bothacking | -11 -10 -9 ------------ Run | Yrd Mat Mat Used RIF Installer . | . . . Robots Hacked . | . . . Non-combat . | . . . Combat . | . . . Robot Hacks Applied . | . . . Relay Couplers Released . | . . . Fabnet Peak Effective % . | . . . Robots Rewired . | . . . Allies Hacked . | . . . Hacks Repelled . | . . . Allies | -11 -10 -9 -------- Run | Yrd Mat Mat Total Allies . | . . . Largest Group . | . . . Highest-Rated Group . | . . . Highest-Rated Ally . | . . . Total Orders . | . . . Ally Attacks . | . . . Total Damage . | . . . Kills . | . . . Allies Corrupted . | . . . Allies Melted . | . . . Intel | -11 -10 -9 ------- Run | Yrd Mat Mat Active Infowar (turns) . | . . . Robot Analysis Total . | . . . Derelict Logs Recovered . | . . . Drone Launches . | . . . Drone Recoveries . | . . . Exploration | -11 -10 -9 ------------- Run | Yrd Mat Mat Turns Passed 493 | 55 194 244 Spaces Moved 308 | 44 144 120 Core 2 | 2 . . Treads . | . . . Legs . | . . . Wheels 306 | 42 144 120 Hover . | . . . Flight . | . . . Fastest Speed 50 | 50 90 105 Average Speed 100 | 88 97 107 Slowest Speed 130 | 100 105 130 Overloaded Moves . | . . . Propulsion Burnouts . | . . . Robots Hopped . | . . . Potential Cave-ins . | . . . Cave-ins Triggered . | . . . Exploration Rate (%) 16 | 3 30 15 Regions Visited 2 Branch Regions . Pre-discovered Areas . | . . . Known Exits Taken . | . . . Unknown Exits Taken 2 | 1 1 . Scrap Searched . | . . . Spaces Dug . | . . . Terrain Destroyed 7 | . 1 6 Melee . | . . . Projectile . | . . . AOE 7 | . 1 6 Terrain Rammed . | . . . Walls Destroyed . | . . . Machines Disabled . | . . . Actions | -11 -10 -9 --------- Run | Yrd Mat Mat Total 426 | 59 177 190 Wait 33 | . 10 23 Move 306 | 43 143 120 Hop . | . . . Pick Up 21 | 10 6 5 Fast Attach . | . . . Attach 16 | 6 1 9 Detach . | . . . Swap 1 | . 1 . Drop 1 | . 1 . Fire 45 | . 12 33 Melee . | . . . Ram 3 | . 3 . Kick . | . . . Crush . | . . . Escape Stasis . | . . . Rewire . | . . . Trap . | . . . Miscellaneous . | . . . Route ------- -11/Scrapyard -10/Materials -9/Materials (discovered 2 exits: [*Min] / [*Sto]) History --------- Turn | Location | Event 40 | -11/Scrapyard | Discovered new exit (range 14) 56 | -11/Scrapyard | Entered Materials 159 | -10/Materials | Discovered new exit (range 10) 250 | -10/Materials | Entered another Materials area 250 | -9/Materials | Evolved 2 slots: Utility x2 255 | -9/Materials | Discovered new exit (range 8) 309 | -9/Materials | Build established: Mutant 381 | -9/Materials | Discovered new exit (range 14) 467 | -9/Materials | Core integrity fell below 50% 494 | -9/Materials | Self-destructed Last Messages --------------- R-06 Scavenger collects Lgt. Assault Rifle. Ion Engine destroyed. Lgt. Armor Plating destroyed. Overheating: System interference. Particle Gun temporarily disabled. G-34 Mercenary destroyed. Particle Gun destroyed. S-10 Pest destroyed. Lgt. Ion Engine destroyed. Wheel destroyed. U-05 Engineer destroyed. Acquired 60 matter. EM Pulse Gun destroyed. Acquired Ion Engine. R-06 Scavenger collects Terrain Scan Processor. K-01 Serf collects debris. R-06 Scavenger collects Welding Torch. K-01 Serf collects debris. Wheel destroyed. K-01 Serf collects debris. Map ----- +----------------------------------------------------+ | ????????# #????????????? | | ????????# """ #????????????? | | ????????# """ [ ###########????????????? | | ????????# % """ [[ #??????????????????????? | | ????????# [%* [ #??????????????????????? | | ??########+## #??????????????????????? | | ??# # ########???????????????? | | ??# *# !! # #???????????????? | | ??# ! # !! # T #???????????????? | | ??# =+ !! %| # #???????????????? | | ??# # ! a+ #???????????????? | | ??# # # #???????????????? | | ??# ########### # #???????????????? | | ??# #?????????# % ########???????????????? | | ??###########?????????#gg ##?????????????????????? | | ??????????????????????# %##?????????????????????? | | ??????????????????????# #??????????????????????? | | ???????????????????#### ##?????????????????????? | | ???????????????????#" #?????????????????????? | | ???????????????????#"" t #?????????????????????? | | ???????????????????#|| #?????????????????????? | | ???????????????????#""!r< #?????????????????????? | | ???????????????????#!!=!o #?????????????????????? | | ???????????????????#""g%s #?????????????????????? | | ???????????????????#" = #?????????????????????? | | ???????????????????####% @##?????????????????????? | | ??????????????????????#k #??????????????????????? | | ??????????????????????# r #??????????????????????? | | ??????????????????????# #??????????????????????? | | ??????????????????????# #??????????????????????? | | ?????????????????????? [u ??????????????????????? | | ????????????????????? #?????????????????????? | | ???????????????????? +?????????????????????? | | ???????????????????? #?????????????????????? | | ??????????????????? #?????????????????????? | | ??????????????????" " #?????????????????????? | | ?????????????????"" T #?????????????????????? | | ?????????????????"" " #?????????????????????? | | ????????????????? ?????????????????????? | | ?????????????????? ? ##?????????????????????? | | ?????????????????#+####?###??????????????????????? | | ?????????????????????????????????????????????????? | | ?????????????????????????????????????????????????? | | ?????????????????????????????????????????????????? | | ?????????????????????????????????????????????????? | | ?????????????????????????????????????????????????? | | ?????????????????????????????????????????????????? | | ?????????????????????????????????????????????????? | | ?????????????????????????????????????????????????? | | ?????????????????????????????????????????????????? | +----------------------------------------------------+ Best States ------------- Heat Dissipation 50 Energy Generation 10 Energy Capacity 250 Matter Stores 380 Matter Capacity 500 Sight Range 16 Terrain Scan Density 10 Armor Coverage 150 Evasion (%) 42 Item Schematics ----------------- None Robot Schematics ------------------ None Fabricated ------------ Nothing Repaired ---------- Nothing Studied --------- None Alien Tech Used ----------------- None Achievements -------------- Ghost 'Em Challenges ------------ None Game ------ Seed SigixDirtyUnit Manual? 0 Play Time 00:07:58 Cumulative 11.3 hours Start 2025.12.20 @ 08:17:36 End 2025.12.20 @ 10:58:38 Sessions 2 Manual Loads 0 Difficulty Rogue Special Mode None Game No. 31 Rogue 30 Adventurer 0 Explorer 1 Win Type - Total 0 Types 0/0/0/0/0/0/0/0/0/0 Lore% 8 Gallery% 13 Achievement% 12 Wizard Run 0 Options --------- Layout 1 ASCII 0 Keyboard 0 Movement Mouse Keybinds 0 Fullscreen 2 Font 24/Smallcaps Map View 50x35 Zoom Use 0% Tactical HUD 0 Map Filters NONE Filters NONE Steam 1 RUN: 525a5ff1-15ab-40d4-8fba-091b4240411a